[Event "IX Iberoamericano Championship 2023"]
[Site "Panama City"]
[Date "2023.11.27"]
[Round "1.1"]
[White "Henriquez Villagra, Cristobal"]
[Black "Zilleruelo Irizarry, Diego"]
[Result "1-0"]
[ECO "B12"]
[WhiteElo "2630"]
[BlackElo "2105"]
[Annotator "TA"]
[PlyCount "63"]
[EventDate "2023.11.27"]
[EventType "swiss"]
[EventCountry "PAN"]
[SourceTitle "playchess.com"]
[Source "ChessBase"]
[SourceQuality "1"]
[TimeControl "5400+30"]

{[%evp 9,63,18,25,22,14,28,26,21,58,49,71,68,90,90,87,87,93,76,93,93,94,95,108,90,95,87,79,77,120,104,127,127,165,150,165,159,175,148,179,161,199,188,194,199,233,234,339,343,427,417,496,494,789,752,695,614]} 1. e4 {[%emt 0:00:03]} c6 {[%emt 1:31:00]} 2. d4 {[%emt 0:00:06]} d5 {[%emt 0:00:00]} 3. e5 {[%emt 0:00:05]} c5 {[%emt 0:00:00]} 4. Nf3 {[%emt 0:00:05]} Nc6 {[%emt 0:00:00]} 5. dxc5 {[%emt 0:00:14]} Bg4 {[%emt 0:00:00]} 6. c3 {[%emt 0:01:45] B12: Caro-Kann: Advance Variation.} Bxf3 {[%emt 0:00:00]} 7. Qxf3 {[%emt 0:00:06]} e6 {[%emt 0:00:00]} 8. Be3 {[%emt 0:01:49] White has an edge.} Nge7 {[%emt 0:00:00]} 9. Bb5 {[%emt 0:01:57]} Ng6 {[%emt 0:00:00]} 10. Bd4 {[%emt 0:12:56] White is more active.} Be7 {[%emt 0:00:00]} 11. O-O {[%emt 0:05:34]} O-O {[%emt 0:00:00] [#]} 12. Bxc6 $146 {[%emt 0:08:42]} ({Predecessor:} 12. Qe3 Qc7 13. Bxc6 bxc6 14. Nd2 Rae8 15. Nf3 Bd8 16. b4 Qb7 17. a4 a6 18. g3 {1-0 Cech,P (2410)-Machan,J (2240) CZE-chT 1415 2014 (2.3)}) 12... bxc6 {[%emt 0:00:00]} 13. Qe3 {[%emt 0:01:04]} Qb8 {[%emt 0:00:00]} 14. b3 {[%emt 0:02:59][%cal Bb2b3,Bb3b4][%mdl 32]} Nh4 {[%emt 0:00:00]} 15. Nd2 {[%emt 0:05:07]} a5 {[%emt 0:00:00]} 16. a3 {[%emt 0:17:09]} Qa7 {[%emt 0:00:00]} 17. b4 {[%emt 0:02:11]} Nf5 {[%emt 0:00:00]} 18. Qd3 {[%emt 0:00:04]} h5 {[%emt 0:00:00]} 19. Nb3 {[%emt 0:00:29]} a4 {[%emt 0:00:00]} 20. Nd2 {[%emt 0:00:17]} Qc7 {[%emt 0:00:00]} 21. Rae1 {[%emt 0:00:34]} g6 {[%emt 0:00:00]} 22. f4 {[%emt 0:00:34]} Kg7 {[%emt 0:00:00]} 23. Nf3 {[%emt 0:00:10]} Rh8 {[%emt 0:00:00]} 24. Bf2 {[%emt 0:00:12]} h4 {[%emt 0:00:00]} 25. Rd1 {[%emt 0:01:56]} Rh5 {[%emt 0:00:00]} 26. c4 {[%emt 0:03:34]} Rhh8 {[%emt 0:00:00]} 27. cxd5 {[%emt 0:00:18]} cxd5 {[%emt 0:00:00]} (27... exd5 $142 28. Rfe1 Rh5) 28. Rb1 $18 {[%emt 0:02:23]} Rhc8 {[%emt 0:00:00]} 29. Rfc1 {[%emt 0:00:14]} Qd7 {[%emt 0:00:00]} 30. b5 {[%emt 0:00:33] White is clearly winning.} d4 {[%emt 0:00:00]} (30... Bd8 $142 31. c6 Qe8) 31. Nxd4 {[%emt 0:00:50]} Nxd4 {[%emt 0:00:00]} 32. Qxd4 {[%emt 0:00:05] White took control after the opening.   Weighted Error Value: White=0.04 (flawless) /Black=0.30} ({Worse is} 32. Bxd4 Bxc5 33. Rc4 (33. Rxc5 $2 {is the wrong capture.} Rxc5 {[%mdl 64] Pin} 34. Qe4 Rd5 $19) 33... Bxa3 $17) 1-0

[Event "IX Iberoamericano Championship 2023"]
[Site "Panama City"]
[Date "2023.11.27"]
[Round "1.2"]
[White "Morales Carlos"]
[Black "Cori, Jorge"]
[Result "0-1"]
[ECO "B37"]
[WhiteElo "2102"]
[BlackElo "2626"]
[Annotator "TA"]
[PlyCount "132"]
[EventDate "2023.11.27"]
[EventType "swiss"]
[EventCountry "PAN"]
[SourceTitle "playchess.com"]
[Source "ChessBase"]
[SourceQuality "1"]
[TimeControl "5400+30"]

{[%evp 18,132,38,37,47,17,18,19,17,18,23,23,20,20,25,15,27,4,10,4,26,27,57,60,60,39,53,27,62,47,37,37,69,26,26,28,27,24,56,24,25,19,19,19,19,19,19,19,19,6,19,17,23,0,0,-16,0,-41,-41,-46,-42,-76,-79,-79,-62,-69,-72,-73,-44,-85,-98,-91,-89,-92,-55,-64,-14,-25,-25,-50,-14,-80,-14,-72,-63,-45,-30,-151,-151,-158,-147,-139,-147,-158,-147,-222,-210,-203,-193,-171,-173,-242,-239,-358,-357,-352,-343,-497,-473,-552,-533,-633,-571,-647,-638,-616,-596]} 1. c4 {[%emt 0:00:10]} c5 {[%emt 0:00:46]} 2. Nf3 {[%emt 0:00:23]} Nc6 {[%emt 0:00:05]} 3. d4 {[%emt 0:00:28]} cxd4 {[%emt 0:00:07]} 4. Nxd4 {[%emt 0:00:04]} g6 {[%emt 0:02:12]} 5. e4 {[%emt 0:01:22]} Bg7 {[%emt 0:00:06]} 6. Be3 {[%emt 0:00:10]} Nf6 {[%emt 0:00:27]} 7. Nc3 {[%emt 0:00:08]} d6 {[%emt 0:00:51]} 8. Be2 {[%emt 0:01:04]} O-O {[%emt 0:00:10]} 9. Nc2 {[%emt 0:00:05]} Be6 {[%emt 0:05:27]} 10. O-O {[%emt 0:01:05] 10.f3 is not played anymore.} Nd7 {[%emt 0:05:26] B37: Sicilian: Maroczy Bind with 5...Bg7, sidelines.} 11. Qd2 {[%emt 0:08:22]} Qa5 {[%emt 0:07:23]} 12. Nd4 {[%emt 0:09:07]} Nxd4 {[%emt 0:05:26] The position is equal.} 13. Bxd4 {[%emt 0:01:49]} Bxd4 {[%emt 0:10:15]} 14. Qxd4 {[%emt 0:01:47]} Qc5 {[%emt 0:00:10]} 15. Qxc5 {[%emt 0:00:09]} Nxc5 {[%emt 0:00:17] [#]} 16. Rac1 $146 {[%emt 0:02:23]} ({Predecessor:} 16. f4 Rfc8 17. f5 Bd7 18. Nd5 Kf8 19. f6 exf6 20. Nxf6 Bc6 21. Nxh7+ Kg7 22. Nf6 Nxe4 23. Nxe4 Bxe4 24. Rad1 d5 25. b3 dxc4 26. Bxc4 {½-½ Novak,P (2317)-Zeleny,T (2187) Plzen op-A 9th 2003 (8)}) 16... Rac8 {[%emt 0:04:22]} 17. f3 {[%emt 0:03:33]} Kg7 {[%emt 0:00:45]} 18. Kf2 {[%emt 0:02:31]} f5 {[%emt 0:10:40]} 19. exf5 {[%emt 0:01:17]} gxf5 {[%emt 0:00:04]} 20. Rfd1 {[%emt 0:01:58]} Kf6 {[%emt 0:00:45]} 21. Bf1 {[%emt 0:00:50]} Nd7 {[%emt 0:02:44]} 22. Rd4 {[%emt 0:10:51]} Ne5 {[%emt 0:01:23][%cal Re5c4]} 23. Re1 {[%emt 0:09:06]} Bf7 {[%emt 0:01:55][%cal Re5c4]} 24. b3 {[%emt 0:01:33][%cal Bb2b3,Bb3b4][%mdl 32]} a6 {[%emt 0:05:27][%cal Ob7b5]} 25. Nd5+ {[%emt 0:07:10]} (25. g3 {is interesting.} b5 26. f4 Nd7 27. g4) 25... Bxd5 {[%emt 0:00:43]} 26. Rxd5 {[%emt 0:00:01]} Nf7 {[%emt 0:07:40]} 27. f4 {[%emt 0:06:23]} Rc5 {[%emt 0:00:55]} 28. b4 {[%emt 0:01:07]} Rc7 {[%emt 0:02:29]} 29. g3 {[%emt 0:04:17]} e6 {[%emt 0:00:25]} 30. Rd2 {[%emt 0:00:10]} a5 {[%emt 0:01:15]} 31. Rb1 {[%emt 0:06:36]} Ra8 {[%emt 0:01:11]} 32. b5 {[%emt 0:00:32]} Rd8 {[%emt 0:02:15]} 33. Rbd1 {[%emt 0:01:42]} b6 {[%emt 0:00:52]} 34. Ke3 {[%emt 0:00:37]} Ke7 {[%emt 0:00:33]} 35. Re1 {[%emt 0:01:01]} Rc5 {[%emt 0:01:17]} 36. Red1 {[%emt 0:00:37]} Nh6 {[%emt 0:03:01]} 37. Be2 {[%emt 0:01:06]} Ng8 {[%emt 0:00:05]} 38. Rd4 {[%emt 0:00:45]} Nf6 {[%emt 0:03:58]} 39. Bf3 {[%emt 0:00:48]} d5 $1 {[%emt 0:02:05]} 40. a4 {[%emt 0:01:20]} Kd6 {[%emt 0:10:31]} ({Of course not} 40... Rxc4 41. Rxc4 dxc4 42. Rxd8 Kxd8 43. Kd4 $11) 41. Be2 {[%emt 0:05:53]} Rdc8 {[%emt 0:00:23]} 42. Bd3 {[%emt 0:03:03]} h5 {[%emt 0:01:06]} 43. cxd5 {[%emt 0:01:28]} Rxd5 {[%emt 0:02:00]} 44. Rxd5+ {[%emt 0:02:55]} Nxd5+ $15 {[%emt 0:00:02][%mdl 4096] Endgame KRB-KRN} 45. Kd4 {[%emt 0:00:18]} Nc3 {[%emt 0:00:11]} 46. Ra1 {[%emt 0:00:20]} Rc7 {[%emt 0:00:04]} (46... h4 $1 $15) 47. Ra3 {[%emt 0:01:21]} Nd5 {[%emt 0:00:02]} 48. Bc4 {[%emt 0:00:37]} Nf6 {[%emt 0:00:52]} 49. Rd3 {[%emt 0:00:44] [#]} (49. Re3 $11 {keeps the balance.} Ne4 50. Bd3) 49... Ne4 {[%emt 0:00:14]} (49... Ke7 $1 $17) 50. Re3 {[%emt 0:00:25]} (50. Ra3 $1 $11) 50... Nc5 $17 {[%emt 0:02:19]} 51. Ra3 {[%emt 0:00:38]} Rh7 {[%emt 0:01:20] Threatens to win with ...h4.} 52. Be2 {[%emt 0:00:26] White is now going downhill.} (52. h4 $1 $11) 52... h4 {[%emt 0:00:07]} 53. g4 {[%emt 0:01:58]} fxg4 {[%emt 0:00:02]} 54. Bxg4 {[%emt 0:00:07]} Rf7 {[%emt 0:00:05]} 55. Ke3 {[%emt 0:00:07] [#]} e5 $1 {[%emt 0:00:04] Black is more active.} 56. fxe5+ {[%emt 0:01:15]} (56. f5 $17) 56... Kxe5 $19 {[%emt 0:00:02]} 57. Bd1 {[%emt 0:00:56]} Rf1 {[%emt 0:00:11]} 58. Ke2 {[%emt 0:00:11]} Rf4 {[%emt 0:00:47]} 59. Rc3 {[%emt 0:01:20]} (59. Ke3 {was worth a try.}) 59... Kd4 {[%emt 0:02:10]} (59... Nxa4 $2 {perishes.} 60. Bxa4 Rxa4 61. Rc6) 60. Rh3 {[%emt 0:00:25]} (60. Ra3 $142) 60... Kc4 {[%emt 0:00:54]} 61. Bc2 {[%emt 0:00:08]} Kb4 {[%emt 0:00:18] Dodges Ra3} 62. Re3 {[%emt 0:01:28]} (62. Kd2 {was necessary.}) 62... Nxa4 {[%emt 0:00:36] White must now prevent ...Nc3+. Black is clearly winning.} 63. Re6 {[%emt 0:00:15]} Nc3+ {[%emt 0:01:01]} 64. Ke3 {[%emt 0:00:53]} Nd5+ {[%emt 0:00:05]} 65. Ke2 {[%emt 0:00:41]} Kxb5 {[%emt 0:00:20]} 66. Re5 {[%emt 0:00:30]} Kc4 {[%emt 0:00:05] Weighted Error Value: White=0.21 (precise) /Black=0.10 (very precise)} 0-1

[Event "IX Iberoamericano Championship 2023"]
[Site "Panama City"]
[Date "2023.11.27"]
[Round "1.3"]
[White "Mareco, Sandro"]
[Black "Fernandez, Maria Florencia"]
[Result "1-0"]
[ECO "E05"]
[WhiteElo "2606"]
[BlackElo "2099"]
[Annotator "TA"]
[PlyCount "139"]
[EventDate "2023.11.27"]
[EventType "swiss"]
[EventCountry "PAN"]
[SourceTitle "playchess.com"]
[Source "ChessBase"]
[SourceQuality "1"]
[TimeControl "5400+30"]

{[%evp 23,139,30,24,12,111,122,128,132,121,121,171,172,176,155,167,158,164,153,164,144,176,93,82,89,90,90,89,91,130,82,96,82,82,61,61,63,63,58,56,20,71,71,73,55,71,71,72,71,83,82,88,89,94,49,41,36,44,15,75,86,85,63,60,60,79,79,133,92,109,117,260,99,264,263,252,196,196,102,108,75,91,10,10,8,8,8,8,8,8,0,8,0,0,0,0,0,0,0,0,0,0,0,8,8,63,73,29963,29963,6901,6901,29971,29972,29975,29976,29978,6256,1660,1637]} 1. Nf3 {[%emt 0:00:01]} Nf6 {[%emt 0:00:21]} 2. c4 {[%emt 0:00:04]} e6 {[%emt 0:00:38]} 3. g3 {[%emt 0:00:06]} d5 {[%emt 0:00:25]} 4. Bg2 {[%emt 0:00:15]} Be7 {[%emt 0:03:52]} 5. O-O {[%emt 0:00:12]} O-O {[%emt 0:00:26]} 6. d4 {[%emt 0:00:04]} dxc4 {[%emt 0:01:42]} 7. Qc2 {[%emt 0:00:04]} a6 {[%emt 0:05:51]} 8. Qxc4 {[%emt 0:00:21]} b5 {[%emt 0:00:53]} 9. Qc2 {[%emt 0:00:05]} Bb7 {[%emt 0:00:18]} 10. Bd2 {[%emt 0:00:05]} Nbd7 {[%emt 0:10:18]} 11. Ba5 {[%emt 0:00:29]} Nb6 {[%emt 0:02:12]} 12. Nbd2 {[%emt 0:00:08]} Rc8 $1 {[%emt 0:07:44]} 13. Qd3 {[%emt 0:00:07] E05: Open Catalan: 5 Nf3 Be7.} Nfd7 {[%emt 0:14:24] [#]} (13... Bxf3 $11 {remains equal.} 14. Bxf3 (14. Nxf3 Nc4 $11) 14... c5) 14. Ng5 $1 $16 {[%emt 0:17:44][%mdl 576] Discovered Attack} Bxg5 {[%emt 0:03:49]} 15. Bxb7 {[%emt 0:01:36] White is better.} Rb8 {[%emt 0:01:46] [#]} 16. Bxa6 $146 {[%emt 0:15:41] White is much more active.} ({Predecessor:} 16. Bc6 e5 17. Nf3 exd4 18. Nxg5 Qxg5 19. Qxd4 Rfd8 20. Qc3 Qe7 21. Qc2 Nf6 22. a3 {1-0 Frolyanov,D (2570)-Travkina,A (2216) Samara Polugaevsky Memorial 3rd 2013 (7)}) 16... Bxd2 {[%emt 0:20:35]} (16... Ra8 $16) 17. Bxd2 $18 {[%emt 0:00:23]} ({Stronger than} 17. Qxd2 Nc4 18. Qc3 Nxa5 19. Qxa5 c5 $11) 17... Nc4 {[%emt 0:00:15]} 18. Bb4 {[%emt 0:01:58]} Nxb2 {[%emt 0:09:04]} 19. Qc2 {[%emt 0:07:40]} Re8 {[%emt 0:00:22]} 20. Qxb2 {[%emt 0:06:47]} Rb6 {[%emt 0:00:19] [#]} 21. Bc3 $1 {[%emt 0:00:42]} Qb8 {[%emt 0:03:15] [#]} (21... Rxa6 22. Qxb5) 22. Rfb1 $1 {[%emt 0:06:09]} Rxa6 $16 {[%emt 0:02:17]} 23. Qxb5 {[%emt 0:00:50]} Qxb5 {[%emt 0:01:19]} 24. Rxb5 {[%emt 0:00:04]} Rea8 {[%emt 0:00:59]} 25. Rb7 {[%emt 0:00:30]} Rc6 {[%emt 0:03:09]} 26. Bb4 {[%emt 0:03:25]} (26. Bd2 $142 $1) 26... Rc4 {[%emt 0:02:04]} 27. a4 {[%emt 0:01:26] And now a5 would win.} Nb6 {[%emt 0:02:29]} 28. Bc5 {[%emt 0:00:09] a5 would be deadly.} Rcxa4 {[%emt 0:00:48]} 29. Rxa4 {[%emt 0:00:36]} Nxa4 {[%emt 0:00:04]} 30. Rxc7 $14 {[%emt 0:00:08][%mdl 4096] Endgame KRB-KRN} Nc3 $1 {[%emt 0:01:29]} 31. e3 {[%emt 0:00:24]} h6 {[%emt 0:00:46]} (31... h5 $1 $11) 32. Ra7 $16 {[%emt 0:01:19]} Rb8 {[%emt 0:01:17]} 33. Ra3 {[%emt 0:00:14]} Ne4 {[%emt 0:00:35]} 34. Ra2 $1 {[%emt 0:00:31]} Rb1+ {[%emt 0:01:01]} 35. Kg2 {[%emt 0:00:06]} Rc1 {[%emt 0:00:39]} 36. Bb4 {[%emt 0:01:02]} g5 {[%emt 0:00:28]} 37. f3 {[%emt 0:00:40]} Rb1 {[%emt 0:00:34]} 38. Ba5 {[%emt 0:02:01]} Nd6 {[%emt 0:00:15]} 39. Rc2 {[%emt 0:00:55]} Nf5 {[%emt 0:00:25]} 40. Bd2 {[%emt 0:00:29]} Kh7 {[%emt 0:00:34] [#]} (40... Rd1 $11 {keeps the balance.}) 41. Bc1 $1 {[%emt 0:01:36]} Kg6 {[%emt 0:00:17]} 42. g4 {[%emt 0:00:54]} Nh4+ {[%emt 0:00:34]} 43. Kf2 {[%emt 0:00:05]} h5 {[%emt 0:00:33]} 44. h3 {[%emt 0:01:38][%cal Bh2h3,Bh3g4][%mdl 32]} Ra1 {[%emt 0:00:30]} (44... f5 $142) 45. e4 {[%emt 0:01:34]} hxg4 {[%emt 0:00:40]} 46. hxg4 {[%emt 0:00:40]} Ra4 {[%emt 0:00:43]} (46... f6 $16 47. e5 fxe5) 47. Be3 $2 {[%emt 0:00:24]} (47. d5 $18 {and the rest is easy.}) 47... Ra6 {[%emt 0:00:29]} (47... f6 $16 48. d5 Ra6) 48. d5 $18 {[%emt 0:01:33]} exd5 {[%emt 0:00:04]} 49. exd5 {[%emt 0:00:05] Rc6+ would kill now.} f6 {[%emt 0:00:27] [#]} 50. Rd2 {[%emt 0:00:11]} (50. Bc5 $1 $18 Ra8 51. d6) 50... Rd6 $16 {[%emt 0:00:39]} 51. Bc5 {[%emt 0:02:39]} Rd7 {[%emt 0:00:14]} 52. d6 {[%emt 0:00:06]} ({White should play} 52. Rd3 $16) 52... Kf7 $1 $11 {[%emt 0:00:26]} 53. Ke3 {[%emt 0:07:03] Threatening Re2.} Ke6 {[%emt 0:00:58]} 54. Rb2 {[%emt 0:03:54]} Kd5 {[%emt 0:00:31]} 55. Rb5 {[%emt 0:01:23]} Ng2+ {[%emt 0:00:35]} 56. Kd2 {[%emt 0:01:12]} Nf4 {[%emt 0:01:09]} 57. Ba3+ {[%emt 0:02:54]} Ke6 {[%emt 0:00:00]} 58. Rb8 {[%emt 0:01:02]} Ng6 {[%emt 0:00:13]} 59. Re8+ {[%emt 0:02:50]} Kf7 {[%emt 0:00:23]} 60. Rc8 {[%emt 0:00:03]} Ne5 {[%emt 0:00:33]} 61. Ke3 {[%emt 0:01:40]} Ke6 {[%emt 0:00:38]} 62. Ke4 {[%emt 0:00:30]} Ng6 {[%emt 0:00:42]} 63. Bc5 {[%emt 0:01:16]} Rb7 {[%emt 0:00:27]} ({Black should try} 63... Ne5 $11) 64. Rc7 $14 {[%emt 0:01:07]} Rb8 $2 {[%emt 0:00:33][%mdl 8192]} (64... Rb1 $16) 65. Rg7 {[%emt 0:00:29]} Rc8 {[%emt 0:00:30]} 66. d7 {[%emt 0:00:11][%cal Rd7c8]} Rd8 {[%emt 0:00:29]} 67. Rxg6 {[%emt 0:00:08]} Rxd7 {[%emt 0:00:03]} 68. Bd4 {[%emt 0:00:08]} Rf7 {[%emt 0:00:16]} 69. Rg8 {[%emt 0:01:21]} (69. Bxf6 $142 Kd6 70. Bd4+ Kd7 71. Rg7 Ke7 72. Rxf7+ Kxf7 73. Kf5 Ke7 74. Bf6+ Kd7 75. Bxg5) 69... Re7 {[%emt 0:00:06]} 70. Rf8 {[%emt 0:00:10] Weighted Error Value: White=0.19 (very precise) /Black=0.16 (very precise)} 1-0

[Event "IX Iberoamericano Championship 2023"]
[Site "Panama City"]
[Date "2023.11.27"]
[Round "1.4"]
[White "Battikh, Jose Miguel"]
[Black "Hernandez Guerrero, Gilberto"]
[Result "0-1"]
[ECO "B30"]
[WhiteElo "2098"]
[BlackElo "2527"]
[Annotator "RC"]
[PlyCount "72"]
[EventDate "2023.11.27"]
[EventType "swiss"]
[EventCountry "PAN"]
[SourceTitle "playchess.com"]
[Source "ChessBase"]
[SourceQuality "1"]
[TimeControl "5400+30"]

1. e4 {[%emt 0:00:16]} c5 {[%emt 0:00:30]} 2. Nf3 {[%emt 0:00:36]} Nc6 {[%emt 0:01:08]} 3. Bb5 {[%emt 0:00:55]} e6 {[%emt 0:00:24]} 4. Nc3 {[%emt 0:02:50]} Nge7 {[%emt 0:00:51]} 5. d4 {[%emt 0:03:36]} cxd4 {[%emt 0:00:32]} 6. Nxd4 {[%emt 0:00:18]} a6 {[%emt 0:03:45]} 7. Be2 {[%emt 0:07:49]} b5 {[%emt 0:04:24]} 8. Be3 {[%emt 0:02:11]} Bb7 {[%emt 0:00:41]} 9. O-O {[%emt 0:08:42]} Ng6 {[%emt 0:02:55]} 10. Nb3 {[%emt 0:02:55]} Rc8 {[%emt 0:11:43]} 11. f4 {[%emt 0:06:10]} Qc7 {[%emt 0:09:15]} 12. Nc5 {[%emt 0:17:09]} Nxf4 {[%emt 0:06:37]} 13. Bxb5 {[%emt 0:03:49]} Bxc5 {[%emt 0:04:46]} 14. Bxc5 {[%emt 0:00:17]} Ne5 {[%emt 0:05:58]} 15. Bd6 {[%emt 0:07:04]} Qb6+ {[%emt 0:00:37]} 16. Kh1 {[%emt 0:00:17]} Nfg6 {[%emt 0:03:56]} 17. Ba4 {[%emt 0:05:26]} Rc4 {[%emt 0:03:03]} 18. Ba3 {[%emt 0:15:12]} h5 {[%emt 0:06:40]} 19. Qe2 {[%emt 0:01:41]} Qa5 {[%emt 0:06:08]} 20. Bxd7+ {[%emt 0:01:48]} Kxd7 {[%emt 0:00:39]} 21. Rxf7+ {[%emt 0:00:28]} Kc8 {[%emt 0:01:32]} 22. Bd6 {[%emt 0:02:57]} Rxc3 {[%emt 0:07:23]} 23. Rxb7 {[%emt 0:01:44]} Kxb7 {[%emt 0:00:29]} 24. bxc3 {[%emt 0:08:20]} Qb6 {[%emt 0:01:25]} 25. Qd1 {[%emt 0:00:00]} Ng4 {[%emt 0:01:59]} 26. Bg3 {[%emt 0:00:00]} Rd8 {[%emt 0:00:39]} 27. Qf1 {[%emt 0:00:00]} Rf8 {[%emt 0:16:01]} 28. Qc1 {[%emt 0:00:00]} Nf2+ {[%emt 0:00:00]} 29. Bxf2 {[%emt 0:00:00]} Qxf2 {[%emt 0:00:00]} 30. Qd1 {[%emt 0:00:00]} Rf7 {[%emt 0:00:00]} 31. Rb1+ {[%emt 0:00:00]} Ka7 {[%emt 0:00:00]} 32. h3 {[%emt 0:00:00]} Nf4 {[%emt 0:00:00]} 33. Qd4+ {[%emt 0:00:00]} Qxd4 {[%emt 0:00:00]} 34. cxd4 {[%emt 0:00:00]} Ne2 {[%emt 0:00:00]} 35. d5 {[%emt 0:00:00]} Ng3+ {[%emt 0:00:00]} 36. Kh2 {[%emt 0:00:00]} Nxe4 {[%emt 0:00:00]} 0-1

[Event "IX Iberoamericano Championship 2023"]
[Site "Panama City"]
[Date "2023.11.27"]
[Round "1.5"]
[White "Almeida Quintana, Omar"]
[Black "Mendez Machado, Andre"]
[Result "1-0"]
[ECO "D02"]
[WhiteElo "2509"]
[BlackElo "2096"]
[Annotator "RC"]
[PlyCount "69"]
[EventDate "2023.11.27"]
[EventType "swiss"]
[EventCountry "PAN"]
[SourceTitle "playchess.com"]
[Source "ChessBase"]
[SourceQuality "1"]
[TimeControl "5400+30"]

1. d4 {[%emt 0:00:10]} Nf6 {[%emt 0:00:06]} 2. Bf4 {[%emt 0:00:12]} e6 {[%emt 0:00:10]} 3. e3 {[%emt 0:00:06]} d5 {[%emt 0:00:04]} 4. Nf3 {[%emt 0:00:15]} Bd6 {[%emt 0:00:07]} 5. Nbd2 {[%emt 0:00:14]} O-O {[%emt 0:06:46]} 6. Bd3 {[%emt 0:00:17]} Bxf4 {[%emt 0:01:07]} 7. exf4 {[%emt 0:00:19]} c5 {[%emt 0:00:27]} 8. dxc5 {[%emt 0:00:56]} Qc7 {[%emt 0:00:19]} 9. g3 {[%emt 0:00:22]} Qxc5 {[%emt 0:08:02]} 10. Nb3 {[%emt 0:00:16]} Qc7 {[%emt 0:08:14]} 11. O-O {[%emt 0:00:34]} Nc6 {[%emt 0:00:36]} 12. Re1 {[%emt 0:00:49]} a6 {[%emt 0:06:00]} 13. c3 {[%emt 0:01:04]} b5 {[%emt 0:07:17]} 14. Nbd4 {[%emt 0:09:57]} Rb8 {[%emt 0:03:59]} 15. Rc1 {[%emt 0:02:51]} Nxd4 {[%emt 0:05:06]} 16. cxd4 {[%emt 0:11:51]} Qa5 {[%emt 0:00:18]} 17. Bb1 {[%emt 0:01:30]} Bb7 {[%emt 0:05:48]} 18. Ne5 {[%emt 0:02:21]} Rfc8 {[%emt 0:04:17]} 19. f3 {[%emt 0:04:20]} Qb4 {[%emt 0:12:35]} 20. Rxc8+ {[%emt 0:00:15]} Rxc8 {[%emt 0:00:10]} 21. Re2 {[%emt 0:00:07]} g6 {[%emt 0:07:45]} 22. h4 {[%emt 0:04:19]} Nh5 {[%emt 0:04:31]} 23. Kg2 {[%emt 0:02:30]} f6 {[%emt 0:08:30]} 24. a3 {[%emt 0:02:11]} Qd6 {[%emt 0:03:17]} 25. Nd3 {[%emt 0:00:09]} Ng7 {[%emt 0:02:33]} 26. b4 {[%emt 0:02:50]} Rc3 {[%emt 0:01:20]} 27. Nc5 {[%emt 0:00:13]} Bc8 {[%emt 0:00:43]} 28. Qd2 {[%emt 0:01:01]} Rc4 {[%emt 0:03:41]} 29. Ba2 {[%emt 0:04:28]} Nf5 {[%emt 0:00:10]} 30. Bxc4 {[%emt 0:00:05]} dxc4 {[%emt 0:00:05]} 31. d5 {[%emt 0:00:09]} e5 {[%emt 0:01:16]} 32. fxe5 {[%emt 0:08:12]} fxe5 {[%emt 0:00:01]} 33. Qe1 {[%emt 0:00:15]} Nd4 {[%emt 0:01:40]} 34. Rxe5 {[%emt 0:00:34]} Qf6 {[%emt 0:00:00]} 35. Qe4 {[%emt 0:02:28]} 1-0

[Event "IX Iberoamericano Championship 2023"]
[Site "Panama City"]
[Date "2023.11.27"]
[Round "1.6"]
[White "Portal Ramos, Cristhian"]
[Black "Berdayes Ason, Dylan Isidro"]
[Result "0-1"]
[ECO "A22"]
[WhiteElo "2085"]
[BlackElo "2507"]
[Annotator "RC"]
[PlyCount "70"]
[EventDate "2023.11.27"]
[EventType "swiss"]
[EventCountry "PAN"]
[SourceTitle "playchess.com"]
[Source "ChessBase"]
[SourceQuality "1"]
[TimeControl "5400+30"]

1. c4 {[%emt 0:00:02]} e5 {[%emt 0:00:06]} 2. Nc3 {[%emt 0:00:09]} Nf6 {[%emt 0:00:04]} 3. g3 {[%emt 0:00:09]} Bb4 {[%emt 0:00:08]} 4. e4 {[%emt 0:00:28]} Bxc3 {[%emt 0:00:24]} 5. dxc3 {[%emt 0:00:13]} d6 {[%emt 0:00:38]} 6. f3 {[%emt 0:01:52]} a5 {[%emt 0:00:15]} 7. Nh3 {[%emt 0:01:44]} a4 {[%emt 0:00:04]} 8. Nf2 {[%emt 0:02:25]} Be6 {[%emt 0:00:07]} 9. Be3 {[%emt 0:04:55]} Nfd7 {[%emt 0:00:15]} 10. Qd2 {[%emt 0:05:26]} Nc6 {[%emt 0:01:07]} 11. Rb1 {[%emt 0:06:48]} O-O {[%emt 0:05:38]} 12. g4 {[%emt 0:02:39]} Na5 {[%emt 0:06:37]} 13. b3 {[%emt 0:04:00]} axb3 {[%emt 0:00:04]} 14. axb3 {[%emt 0:00:20]} b5 {[%emt 0:00:20]} 15. cxb5 {[%emt 0:01:58]} Nxb3 {[%emt 0:00:22]} 16. Qd1 {[%emt 0:07:36]} Ra3 {[%emt 1:22:21]} 17. Be2 {[%emt 0:13:45]} Qa8 {[%emt 0:00:00]} 18. O-O {[%emt 0:08:11]} Qa5 {[%emt 0:00:00]} 19. Qc2 {[%emt 0:06:34]} Nb6 {[%emt 0:00:00]} 20. c4 {[%emt 0:06:50]} Nd4 {[%emt 0:00:00]} 21. Bxd4 {[%emt 0:00:41]} exd4 {[%emt 0:00:00]} 22. Rfd1 {[%emt 0:01:25]} Rc3 {[%emt 0:00:00]} 23. Qd2 {[%emt 0:06:00]} Bxc4 {[%emt 0:00:00]} 24. Ra1 {[%emt 0:04:37]} Qxb5 {[%emt 0:00:00]} 25. Qxd4 {[%emt 0:00:06]} Rb3 {[%emt 0:00:00]} 26. Bd3 {[%emt 0:04:09]} h5 {[%emt 0:00:00]} 27. h3 {[%emt 0:01:08]} Rd8 {[%emt 0:00:00]} 28. Rac1 {[%emt 0:00:55]} Rb4 {[%emt 0:00:00]} 29. Bxc4 {[%emt 0:01:19]} Rxc4 {[%emt 0:00:00]} 30. Rxc4 {[%emt 0:01:04]} Nxc4 {[%emt 0:00:00]} 31. Rc1 {[%emt 0:03:10]} Ne5 {[%emt 0:00:00]} 32. Rc3 {[%emt 0:03:16]} Ra8 {[%emt 0:00:00]} 33. Qd1 {[%emt 0:01:48]} Ra2 {[%emt 0:00:00]} 34. f4 {[%emt 0:00:47]} Qb2 {[%emt 0:00:00]} 35. Qd4 {[%emt 0:00:04]} Nf3+ {[%emt 0:00:00]} 0-1